Cogmind - Beta 14 @@@ ROGUE MODE // 2025.01.08 @ 10:48:11 Player: TPL Result: Destroyed self with Grenade Launcher Performance ------------- Evolutions (0) 0 Regions Visited (2) 400 Robots Destroyed (17) 85 Value Destroyed (364) 364 Prototype IDs (0) 0 Alien Tech Used (0) 0 Bonus (0) 0 TOTAL SCORE: 849 Bonus ------- None Cogmind --------- Core Integrity 0/250 Matter 300/300 Energy 100/100 System Corruption 0% Temperature Cool (0) Movement Rolling (110) Ox2 Location -10/Mines Parts ------- > --- POWER (1) -------- (None) > --- PROPULSION (2) --- Wheel Wheel > --- UTILITY (2) ------ High-capacity Storage Unit Signal Interpreter > --- WEAPON (2) ------- Beam Cannon > --- INVENTORY (20) --- Large Storage Unit High-capacity Matter Pod (200) Targeting Computer Weapon Shielding Beam Cannon Peak State ------------ > --- POWER ------------ Light Ion Engine > --- PROPULSION ------- Compact Wheel Compact Wheel > --- UTILITY ---------- Large Storage Unit Weapon Shielding > --- WEAPON ----------- Light Assault Rifle Light Assault Rifle > --- INVENTORY -------- Wheel Wheel Huge Storage Unit High-capacity Matter Pod Grenade Launcher [Rating: 7] Favorites ----------- Power Light Ion Engine Engine Light Ion Engine Propulsion Wheel Leg Aluminum Leg Wheel Wheel Utility High-capacity Storage Unit Storage High-capacity Storage Unit Processor Signal Interpreter Protection Weapon Shielding Weapon Light Assault Rifle Energy Cannon Beam Cannon Ballistic Gun Light Assault Rifle Launcher Grenade Launcher Build | -11 -10 -10 ------- Run | Yrd Mat Min Slots Evolved . | . . . Power . | . . . Propulsion . | . . . Utility . | . . . Weapon . | . . . Parts Attached 24 | 5 19 . Power 3 | 1 2 . Engine 3 | 1 2 . Core . | . . . Reactor . | . . . Propulsion 9 | 2 7 . Treads . | . . . Leg 1 | . 1 . Wheel 8 | 2 6 . Hover . | . . . Flight . | . . . Utility 4 | . 4 . Device . | . . . Storage 2 | . 2 . Processor 1 | . 1 . Hackware . | . . . Protection 1 | . 1 . Artifact . | . . . Weapon 8 | 2 6 . Energy Gun . | . . . Energy Cannon 2 | . 2 . Ballistic Gun 3 | 2 1 . Ballistic Cannon . | . . . Launcher 3 | . 3 . Special Weapon . | . . . Impact Weapon . | . . . Slashing Weapon . | . . . Piercing Weapon . | . . . Special Melee Weapon . | . . . Unidentified Prototypes . | . . . Parts Lost 3 | . 1 2 Power 1 | . . 1 Propulsion 1 | . 1 . Utility . | . . . Weapon 1 | . . 1 Highest Loss Streak 2 | . 1 2 To Critical Strikes . | . . . Average Slot Usage (%) 87 | . 87 100 Engine 14 | . 14 14 Wheel 21 | . 21 28 Storage 11 | . 11 14 Processor 4 | . 4 14 Protection 5 | . 5 . Energy Cannon 12 | . 12 14 Ballistic Gun 12 | . 12 . Launcher 3 | . 3 14 Peak Build Rating 7 | 5 7 7 Average Rating 5 | 3 6 7 On Entrance 4 | . 5 7 Naked Turns . | . . . Heaviest Build 52 | 5 52 49 Greatest Support 32 | 20 32 20 Greatest Overweight (x) 4 | . 4 2 Average Overweight (x) 1 | . 1 2 Largest Inventory Capacity 20 | 5 20 20 Average Capacity 15 | 5 16 20 Most Carried 8 | . 8 5 Average Carried 4 | . 4 5 Final Capacity 20 | 5 20 20 Final Carried 5 | . 5 5 Class Distribution -------------------- 100% | Mutant Dominant Class ---------------- Mutant | -10/Materials Mutant | -10/Mines Resources | -11 -10 -10 ----------- Run | Yrd Mat Min Matter Collected 809 | 258 551 . Remotely . | . . . Salvage Created 503 | 35 468 . Parts 33 | 3 30 . Haulers Intercepted . | . . . Recyclers Shooed . | . . . Parts Field Recycled . | . . . Retrieved Matter . | . . . Parts Self-Destructed . | . . . Prevented . | . . . Kills | -11 -10 -10 ------- Run | Yrd Mat Min Combat Hostiles Destroyed 11 | 1 10 . Guns 7 | 1 6 . Cannons 1 | . 1 . AOE 3 | . 3 . Classes Destroyed 7 | 1 6 . Worker 2 | . 2 . Builder 1 | . 1 . Tunneler 1 | . 1 . Recycler 1 | . 1 . Watcher 1 | . 1 . Swarmer 3 | . 3 . Grunt 8 | 1 7 . Best Kill Streak 7 | 1 7 . Combat Bots Only 5 | 1 5 . Max Kills in Single Turn 2 | 1 2 . Gunslinging . | . . . Exploded 1 | . 1 . Melee . | . . . Uniques/NPCs Destroyed . | . . . Combat | -11 -10 -10 -------- Run | Yrd Mat Min Hostile Shots Fired 67 | 5 62 . Missed 14 | 2 12 . Damage Taken 688 | 32 638 18 Core 254 | . 248 6 Absorbed by Shields . | . . . Redirected to Shielding 23 | . 23 . Regen/Repaired (Parts) 23 | . 23 . Core Remaining (%) 100 | 100 . . Volleys Fired 55 | 4 50 1 Largest 2 | 2 2 2 Hottest 120 | 40 120 90 Shots Fired 102 | 8 92 2 Gun 65 | 8 57 . Cannon 28 | . 27 1 Launcher 9 | . 8 1 Special . | . . . Kinetic 65 | 8 57 . Thermal 28 | . 27 1 Explosive 9 | . 8 1 Electromagnetic . | . . . Robot Hit Streak 13 | 2 13 . Robot Miss Streak 7 | 2 7 . Penetration Max . | . . . Secondary Targets 1 | . 1 . Max Gunslinging Chain 1 | . 1 . Shots Hit Robots 50 | 4 46 . Core Hits 27 | 2 25 . Critical Kills . | . . . Critical Parts Destroyed . | . . . Critical Strikes . | . . . Melee Attacks . | . . . Impact . | . . . Slashing . | . . . Piercing . | . . . Sneak Attacks . | . . . Combat Hostiles . | . . . Follow-up Attacks . | . . . Damage Inflicted 725 | 51 674 . Guns 348 | 51 297 . Cannons 156 | . 156 . Explosions 221 | . 221 . Melee . | . . . Ramming . | . . . Kinetic 348 | 51 297 . Thermal 156 | . 156 . Explosive 221 | . 221 . Electromagnetic . | . . . Impact . | . . . Slashing . | . . . Piercing . | . . . Highest Corruption . | . . . Average Corruption . | . . . Corruption Purged . | . . . Corruption Blocked . | . . . Overload Shots . | . . . Overflow Damage 19 | . 11 8 Projectiles . | . . . Explosions 19 | . 11 8 Melee . | . . . Knockbacks . | . . . Impact . | . . . Kinetic . | . . . Secondary . | . . . Self-Inflicted Damage 28 | . . 28 Shots 1 | . . 1 Rammed . | . . . Targets Rammed . | . . . Kicked . | . . . Crushed . | . . . Highest Temperature 566 | 6 566 . Average Temperature 163 | 6 165 . Received Heat Transfer 261 | 18 243 . Effects 18 | . 18 . Shutdowns 1 | . 1 . Energy Bleed 2 | . 2 . Interference 2 | . 2 . Matter Decay 1 | . 1 . Short Circuit 2 | . 2 . Damage (minor) 2 | . 2 . Damage (major) 6 | . 6 . Damage (core) 2 | . 2 . Siege Activations . | . . . Robots Corrupted . | . . . Combat Hostiles . | . . . Parts Fried . | . . . Impact Corruptions . | . . . Robots Melted . | . . . Combat Hostiles . | . . . Parts Melted . | . . . Heat Transferred 333 | . 333 . Parts Sabotaged . | . . . Parts Stolen . | . . . Parts Stripped . | . . . Power Chain Reactions . | . . . Alert | -11 -10 -10 ------- Run | Yrd Mat Min Peak Influence 204 | 20 204 20 Initial 20 | . 13 20 Average 67 | 1 74 20 Maximum Alert Level 1 | . 1 . Low Security (%) 99 | 100 99 100 Level 1 . | . . . Level 2 . | . . . Level 3 . | . . . Level 4 . | . . . Level 5 . | . . . High Security . | . . . Max Security . | . . . Squads Dispatched 1 | . 1 . Investigation 1 | . 1 . Extermination . | . . . Reinforcement . | . . . Assault . | . . . Garrison . | . . . Intercept . | . . . Searches Triggered . | . . . Construction Impeded . | . . . Haulers Reinforced . | . . . Active Scanning Responses . | . . . Cargo Convoy Interrupts . | . . . Stealth | -11 -10 -10 --------- Run | Yrd Mat Min Distress Signals 1 | . 1 . Communications Jammed . | . . . Distress Signals . | . . . Times Spotted 17 | 1 16 . Peak Tracking Total 3 | 1 3 . Tactical Retreats . | . . . Traps | -11 -10 -10 ------- Run | Yrd Mat Min Traps Triggered . | . . . Indirectly . | . . . Trap Hack Attempts . | . . . Triggered . | . . . Disarmed . | . . . Reprogrammed . | . . . Reused . | . . . Traps Extracted . | . . . Installed . | . . . Triggered . | . . . Machines | -11 -10 -10 ---------- Run | Yrd Mat Min Machines Disabled . | . . . Max in Single Turn . | . . . Machines Repaired . | . . . Machines Dismantled . | . . . Machines Sabotaged . | . . . Overloaded Fab Kills . | . . . Hacking | -11 -10 -10 --------- Run | Yrd Mat Min Machines Accessed 7 | . 7 . Terminals 4 | . 4 . Fabricators . | . . . Repair Stations 1 | . 1 . Recycling Units 2 | . 2 . Scanalyzers . | . . . Garrison Access . | . . . Total Hacks 26 | . 26 . Successful 15 | . 15 . Failed 10 | . 10 . Catastrophic 1 | . 1 . Database Lockouts 1 | . 1 . Manual . | . . . Terminals 16 | . 16 . Fabricators . | . . . Repair Stations 3 | . 3 . Recycling Units 7 | . 7 . Scanalyzers . | . . . Garrison Access . | . . . Terminal Hacks 9 | . 9 . Record 7 | . 7 . Locate Traps 1 | . 1 . Zone Layout 1 | . 1 . Fabricator Hacks . | . . . Repair Station Hacks 3 | . 3 . Scan Component 2 | . 2 . Repair 1 | . 1 . Recycling Unit Hacks 3 | . 3 . Report Inventory 2 | . 2 . Retrieve Components 1 | . 1 . Scanalyzer . | . . . Garrison Access Hacks . | . . . Unauthorized Hacks . | . . . Terminals . | . . . Fabricators . | . . . Repair Stations . | . . . Recycling Units . | . . . Scanalyzers . | . . . Garrison Access . | . . . Data Cores Recovered . | . . . Used . | . . . Hacking Detections 7 | . 7 . Full Trace Events 6 | . 6 . Feedback Events . | . . . Feedback Blocked . | . . . Robot Schematics Acquired . | . . . Robots Built . | . . . Authchips . | . . . Time . | . . . Total Robot Build Rating . | . . . Part Schematics Acquired . | . . . Parts Built . | . . . Authchips . | . . . Time . | . . . Total Part Build Rating . | . . . Parts Repaired 1 | . 1 . Time 26 | . 26 . Parts Recycled . | . . . Recycled Matter . | . . . Retrieved Matter . | . . . Retrieved Components 3 | . 3 . Parts Scanalyzed . | . . . Part Schematics Acquired . | . . . Parts Damaged . | . . . Bothacking | -11 -10 -10 ------------ Run | Yrd Mat Min Used RIF Installer . | . . . Robots Hacked . | . . . Non-combat . | . . . Combat . | . . . Robot Hacks Applied . | . . . Relay Couplers Released . | . . . Fabnet Peak Effective % . | . . . Robots Rewired . | . . . Allies Hacked . | . . . Hacks Repelled . | . . . Allies | -11 -10 -10 -------- Run | Yrd Mat Min Total Allies . | . . . Largest Group . | . . . Highest-Rated Group . | . . . Highest-Rated Ally . | . . . Total Orders . | . . . Ally Attacks . | . . . Total Damage . | . . . Kills . | . . . Allies Corrupted . | . . . Allies Melted . | . . . Intel | -11 -10 -10 ------- Run | Yrd Mat Min Robot Analysis Total . | . . . Derelict Logs Recovered . | . . . Drone Launches . | . . . Drone Recoveries . | . . . Exploration | -11 -10 -10 ------------- Run | Yrd Mat Min Turns Passed 1022 | 77 924 21 Spaces Moved 718 | 81 618 19 Core 18 | 18 . . Treads . | . . . Legs 1 | . 1 . Wheels 699 | 63 617 19 Hover . | . . . Flight . | . . . Fastest Speed 50 | 50 80 110 Average Speed 109 | 73 114 110 Slowest Speed 400 | 80 400 110 Overloaded Moves . | . . . Propulsion Burnouts . | . . . Robots Hopped . | . . . Cave-ins Triggered . | . . . Exploration Rate (%) 24 | 8 57 8 Regions Visited 2 Branch Regions 1 Pre-discovered Areas . | . . . Known Exits Taken 1 | . 1 . Unknown Exits Taken 1 | 1 . . Scrap Searched . | . . . Spaces Dug 6 | . . 6 Terrain Destroyed 51 | . 45 6 Melee . | . . . Projectile . | . . . AOE 51 | . 45 6 Terrain Rammed . | . . . Walls Destroyed . | . . . Machines Disabled . | . . . Actions | -11 -10 -10 --------- Run | Yrd Mat Min Total 863 | 89 754 20 Wait 39 | . 39 . Move 716 | 80 617 19 Hop . | . . . Pick Up 18 | . 18 . Fast Attach 5 | 5 . . Attach 5 | . 5 . Detach 2 | . 2 . Swap 14 | . 14 . Drop 9 | . 9 . Fire 55 | 4 50 1 Melee . | . . . Ram . | . . . Kick . | . . . Crush . | . . . Escape Stasis . | . . . Rewire . | . . . Trap . | . . . Miscellaneous . | . . . Route ------- -11/Scrapyard -10/Materials (discovered 2 exits: [*Mat] / *Min) -10/Mines History --------- Turn | Location | Event 2 | -11/Scrapyard | Met Revision 17 52 | -11/Scrapyard | Discovered new exit (range 8) 78 | -11/Scrapyard | Entered Materials 140 | -10/Materials | Repaired Grenade Launcher? 309 | -10/Materials | Build established: Mutant 429 | -10/Materials | Discovered new exit (range 12) 503 | -10/Materials | Core integrity fell below 50% 552 | -10/Materials | Central database locked down 574 | -10/Materials | Discovered new exit (range 13) 724 | -10/Materials | Identified exit to Mines 848 | -10/Materials | Core integrity fell below 20% 1002 | -10/Materials | Entered Mines 1009 | -10/Mines | Met a Derelict bent on vengeance 1023 | -10/Mines | Destroyed self with Grenade Launcher Last Messages --------------- 00889_ Acquired 16 matter. 00890_ The unstable cave ceiling collapses. 00892_ K-01 Serf collects debris. 00910_ R-06 Scavenger inserts Com. Wheel into recycling unit. 00913_ K-01 Serf collects debris. 00913_ R-06 Scavenger inserts Wheel into recycling unit. 00914_ Recycling unit begins recycling process. 00916_ R-06 Scavenger inserts Med. Matter Pod into recycling unit. 00917_ K-01 Serf collects debris. 00924_ R-06 Scavenger collects Sml. Storage Unit. LOCATION=MINES GOAL=ESCAPE 01023_ Lgt. Ion Engine destroyed. 01023_ Destroyed Lgt. Ion Engine. 01023_ Grenade Launcher destroyed. 01023_ Destroyed Grenade Launcher. Map ----- +----------------------------------------------------+ | ????????????????????????????????????????????? | | ????????????????????????????????????????????? | | ????????????????????????????????????????????? | | ????????????????????????????????????????????? | | ????????????????????????????????????????????? | | ????????????????????????????????????????????? | | ????????????????????????????????????????????? | | ????????????????????????????????????????????? | | ????????????????????????????????????????????? | | ????????????????????????????????????????????? | | ????????????????????????????????????????????? | | ????????????????????????????????????????????? | | ????????????????????????????????????????????? | | ????????????????????????????????????????????? | | ????????????????????????????????????????????? | | ????????????????????????????????????????????? | | ??????????????????????##????????????????????? | | ?????????????????????? ???????####?????????? | | ??????????????????????# ???????? #?????????? | | ??????????????????????# ###?????# #?????????? | | ?????????????????????## ?????# ##????????? | | ????????????????????## #????## ##???????? | | ????????????????????# #???## #####???? | | ????????????????????# ##### ##??? | | ????????????????????+ t #??? | | ????????????????????+ @ #??? | | ????????????????????# #### #??? | | ????????????????????# #??## #?? | | ????????????????????# #???# #?? | | ????????????????????## ###???## #?? | | ?????????????????????### ???????#### ##?? | | ???????????????????????# ??????????#######??? | | ???????????????????????#g???????????????????? | | ??????????????????????? ???????????????????? | | ???????????????????????##???????????????????? | | ????????????????????????????????????????????? | | ????????????????????????????????????????????? | | ????????????????????????????????????????????? | | ????????????????????????????????????????????? | | ????????????????????????????????????????????? | | ????????????????????????????????????????????? | | ????????????????????????????????????????????? | | ????????????????????????????????????????????? | | ????????????????????????????????????????????? | | ????????????????????????????????????????????? | | ????????????????????????????????????????????? | | ????????????????????????????????????????????? | | ????????????????????????????????????????????? | | ????????????????????????????????????????????? | | ????????????????????????????????????????????? | +----------------------------------------------------+ Best States ------------- Heat Dissipation 25 Energy Generation 10 Energy Capacity 250 Matter Stores 300 Matter Capacity 300 Sight Range 16 Terrain Scan Density 10 Weapon Shielding 33 Evasion (%) 50 Item Schematics ----------------- None Robot Schematics ------------------ None Fabricated ------------ Nothing Alien Tech Used ----------------- None Achievements -------------- Part-time Mechanic Challenges ------------ None Game ------ Seed MetaAntigravNullifier Manual? 0 Play Time 00:17:58 Cumulative 2.3 hours Start 2025.01.08 @ 10:28:45 End 2025.01.08 @ 10:48:11 Sessions 1 Manual Loads 0 Difficulty Rogue Special Mode None Game No. 3 Rogue 3 Adventurer 0 Explorer 0 Win Type - Total 0 Types 0/0/0/0/0/0/0/0/0 Lore% 3 Gallery% 4 Achievement% 6 Wizard Run 0 Options --------- Layout 1 ASCII 0 Keyboard 0 Movement Numpad Keybinds 0 Fullscreen 2 Font 32/SmallcapsGlow Map View 50x35 Zoom Use 0% Tactical HUD 1 Map Filters NONE Filters NONE Steam 1 RUN: b4717a7c-86ac-46a9-824a-7943eda05995